Cogmind - Beta 9.1 *** ADVENTURER MODE // 2019.11.10 @ 20:40:33 // Halloween2019/Abominations Player: core_nxt Result: Destroyed by Lesser Abomination with Light Assault Rifle Performance ------------- Evolutions (1) 500 Regions Visited (2) 400 Robots Destroyed (31) 155 Value Destroyed (1545) 1545 Prototype IDs (1) 20 Alien Tech Used (0) 0 Bonus (0) 0 TOTAL SCORE: 2620 Bonus ------- None Cogmind --------- Core Integrity 0/400 Matter 446/450 Energy 525/525 System Corruption 3% Temperature Cool (12) Location -9/Materials Parts ------- Power (1) Light Ion Engine Propulsion (2) Improved Hover Unit Improved Hover Unit Utility (4) Small Storage Unit High-capacity Battery Small Matter Pod Medium Matter Pod Weapon (2) Improved Assault Rifle Assault Cannon Inventory (6) Heat Sink Improved Signal Interpreter Targeting Computer Improved Assault Rifle Assault Cannon Peak State ------------ Power Light Nuclear Core Propulsion Aluminum Leg Improved Hover Unit Utility Small Storage Unit Large Storage Unit Heavy Armor Plating Weapon Assault Cannon Assault Cannon Inventory Heat Sink Heat Sink High-capacity Battery Improved Signal Interpreter Targeting Computer Melee Analysis Suite Assault Cannon Assault Cannon Assault Cannon Katana [Rating: 22] Favorites ----------- Power Light Ion Engine Engine Light Ion Engine Power Core Light Nuclear Core Propulsion Aluminum Leg Treads Light Treads Leg Aluminum Leg Hover Unit Improved Hover Unit Utility Large Storage Unit Device Shield Generator Storage Large Storage Unit Processor Terrain Scan Processor Protection Heavy Armor Plating Weapon Assault Cannon Energy Gun Small Laser Ballistic Gun Light Assault Rifle Ballistic Cannon Assault Cannon Slashing Weapon Katana Build | -11 -10 -9 ------- Run | Scr Mat Mat Slots Evolved 2 | . . 2 Power . | . . . Propulsion . | . . . Utility 2 | . . 2 Weapon . | . . . Parts Attached 48 | 7 9 32 Power 4 | 1 . 3 Engine 3 | 1 . 2 Core 1 | . . 1 Reactor . | . . . Propulsion 15 | 3 3 9 Treads 2 | 2 . . Leg 7 | 1 3 3 Wheel . | . . . Hover 6 | . . 6 Flight . | . . . Utility 15 | 1 2 12 Device 3 | . . 3 Storage 8 | 1 2 5 Processor 1 | . . 1 Hackware . | . . . Protection 3 | . . 3 Artifact . | . . . Weapon 14 | 2 4 8 Energy Gun 5 | 1 3 1 Energy Cannon . | . . . Ballistic Gun 4 | 1 1 2 Ballistic Cannon 4 | . . 4 Launcher . | . . . Special Weapon . | . . . Impact Weapon . | . . . Slashing Weapon 1 | . . 1 Piercing Weapon . | . . . Special Melee Weapon . | . . . Unidentified Prototypes 1 | . . 1 Parts Lost 17 | . 8 9 Power 1 | . . 1 Propulsion 6 | . 3 3 Utility 1 | . . 1 Weapon 9 | . 5 4 Highest Loss Streak 6 | . 3 6 Average Slot Usage (%) 87 | . 91 84 Engine 10 | . 14 8 Treads 5 | . 14 . Leg 12 | . 11 13 Hover 3 | . . 6 Device 2 | . . 5 Storage 22 | . 24 20 Protection 4 | . . 7 Energy Gun 8 | . 13 5 Ballistic Gun 6 | . 12 2 Ballistic Cannon 6 | . . 11 Naked Turns 1 | . . 1 Heaviest Build 50 | 12 28 50 Greatest Support 40 | 40 40 20 Greatest Overweight (x) 4 | . 2 4 Average Overweight (x) 1 | . . 1 Largest Inventory Capacity 12 | 6 10 12 Average Capacity 9 | 5 8 9 Most Carried 12 | 4 9 12 Average Carried 7 | 1 6 8 Final Capacity 10 | 6 10 6 Final Carried 6 | 4 6 5 Class Distribution -------------------- 66% | Mutant 33% | Scavenger-Mutant Dominant Class ---------------- Mutant | -10/Materials Mutant | -9/Materials Resources | -11 -10 -9 ----------- Run | Scr Mat Mat Matter Collected 1421 | 204 176 1041 Remotely . | . . . Salvage Created 1035 | . 425 610 Parts 73 | . 29 44 Haulers Intercepted . | . . . Recyclers Shooed . | . . . Parts Field Recycled . | . . . Retrieved Matter . | . . . Parts Self-Destructed . | . . . Prevented . | . . . Kills | -11 -10 -9 ------- Run | Scr Mat Mat Combat Hostiles Destroyed 30 | . 12 18 Melee 1 | . . 1 Guns 19 | . 12 7 Cannons 10 | . . 10 Classes Destroyed 5 | . 3 2 Worker 1 | . . 1 Swarmer 2 | . 2 . Grunt 6 | . 3 3 Duelist 1 | . . 1 Abomination 21 | . 7 14 Best Kill Streak 5 | . 5 3 Combat Bots Only 5 | . 5 3 Max Kills in Single Turn 1 | . 1 1 Gunslinging . | . . . Exploded . | . . . Melee 1 | . . 1 Uniques/NPCs Destroyed . | . . . Combat | -11 -10 -9 -------- Run | Scr Mat Mat Damage Taken 3040 | . 1029 2011 Core 567 | . 162 405 Absorbed by Shields 75 | . . 75 Core Remaining (%) 67 | 100 35 . Volleys Fired 132 | . 47 85 Largest 2 | . 2 2 Hottest 88 | . 70 88 Shots Fired 252 | . 91 161 Gun 152 | . 91 61 Cannon 100 | . . 100 Launcher . | . . . Special . | . . . Kinetic 190 | . 49 141 Thermal 62 | . 42 20 Explosive . | . . . Electromagnetic . | . . . Robot Hit Streak 39 | . 26 39 Robot Miss Streak 2 | . 2 2 Penetration Max . | . . . Secondary Targets 5 | . 5 . Max Gunslinging Chain 1 | . 1 . Shots Hit Robots 235 | . 82 153 Core Hits 72 | . 29 43 Critical Hits 3 | . 1 2 Critical Kills 1 | . 1 . Critical Parts Destroyed 1 | . . 1 Melee Attacks 10 | . . 10 Impact . | . . . Slashing 10 | . . 10 Piercing . | . . . Sneak Attacks . | . . . Combat Hostiles . | . . . Follow-up Attacks . | . . . Damage Inflicted 4023 | . 832 3191 Guns 1637 | . 832 805 Cannons 2086 | . . 2086 Explosions . | . . . Melee 298 | . . 298 Ramming 2 | . . 2 Kinetic 2963 | . 315 2648 Thermal 760 | . 517 243 Explosive . | . . . Electromagnetic . | . . . Impact . | . . . Slashing 298 | . . 298 Piercing . | . . . Highest Corruption 3 | . . 3 Average Corruption 2 | . . 2 Corruption Purged . | . . . Effects 9 | . . 9 Message Errors 4 | . . 4 Matter Fused 1 | . . 1 Energy Discharges 2 | . . 2 Data Loss (minor) 1 | . . 1 Targeting Errors 1 | . . 1 Overload Shots . | . . . Overflow Damage 66 | . . 66 Projectiles 66 | . . 66 Explosions . | . . . Melee . | . . . Knockbacks 29 | . . 29 Impact . | . . . Kinetic 27 | . . 27 Secondary 2 | . . 2 Self-Inflicted Damage . | . . . Shots . | . . . Rammed . | . . . Targets Rammed 1 | . . 1 Kicked 1 | . . 1 Crushed . | . . . Highest Temperature 534 | . 300 534 Average Temperature 148 | . 119 158 Received Heat Transfer 914 | . 402 512 Effects 17 | . 1 16 Shutdowns 6 | . . 6 Energy Bleed 1 | . 1 . Interference 3 | . . 3 Short Circuit 3 | . . 3 Damage (minor) 1 | . . 1 Damage (major) 3 | . . 3 Siege Activations . | . . . Robots Corrupted . | . . . Combat Hostiles . | . . . Parts Fried . | . . . Impact Corruptions . | . . . Robots Melted . | . . . Combat Hostiles . | . . . Parts Melted . | . . . Heat Transferred 753 | . 544 209 Parts Sabotaged . | . . . Parts Stolen . | . . . Parts Stripped . | . . . Power Chain Reactions . | . . . Missiles Intercepted . | . . . Alert | -11 -10 -9 ------- Run | Scr Mat Mat Peak Influence 115 | . 105 115 Average Influence 13 | . 7 17 Maximum Alert Level . | . . . Low Security (%) 100 | . . . Level 1 . | . . . Level 2 . | . . . Level 3 . | . . . Level 4 . | . . . Level 5 . | . . . High Security . | . . . Max Security . | . . . Squads Dispatched 10 | . 2 8 Investigation 2 | . . 2 Extermination . | . . . Reinforcement 2 | . . 2 Assault 6 | . 2 4 Garrison . | . . . Intercept . | . . . Construction Impeded . | . . . Haulers Reinforced . | . . . Stealth | -11 -10 -9 --------- Run | Scr Mat Mat Distress Signals 4 | . 1 3 Communications Jammed . | . . . Distress Signals . | . . . Times Spotted 52 | . 22 30 Peak Tracking Total 7 | . 7 5 Tactical Retreats 8 | . 3 5 Traps | -11 -10 -9 ------- Run | Scr Mat Mat Traps Triggered . | . . . Indirectly . | . . . Trap Hack Attempts . | . . . Triggered . | . . . Disarmed . | . . . Reprogrammed . | . . . Reused . | . . . Traps Extracted . | . . . Installed . | . . . Triggered . | . . . Machines | -11 -10 -9 ---------- Run | Scr Mat Mat Machines Disabled . | . . . Max in Single Turn . | . . . Machines Sabotaged . | . . . Garrisons Compromised . | . . . Overloaded Fab Kills . | . . . Fab Network Shutdowns . | . . . Hacking | -11 -10 -9 --------- Run | Scr Mat Mat Machines Accessed 2 | . 1 1 Terminals 2 | . 1 1 Fabricators . | . . . Repair Stations . | . . . Recycling Units . | . . . Scanalyzers . | . . . Garrison Access . | . . . Total Hacks 3 | . 1 2 Successful 2 | . 1 1 Failed 1 | . . 1 Catastrophic 1 | . . 1 Database Lockouts . | . . . Manual . | . . . Terminals 3 | . 1 2 Fabricators . | . . . Repair Stations . | . . . Recycling Units . | . . . Scanalyzers . | . . . Garrison Access . | . . . Terminal Hacks 2 | . 1 1 Locate Traps 1 | . 1 . Investigation Status 1 | . . 1 Fabricator Hacks . | . . . Repair Station Hacks . | . . . Recycling Unit Hacks . | . . . Scanalyzer . | . . . Garrison Access Hacks . | . . . Unauthorized Hacks . | . . . Terminals . | . . . Fabricators . | . . . Repair Stations . | . . . Recycling Units . | . . . Scanalyzers . | . . . Garrison Access . | . . . Data Cores Recovered . | . . . Used . | . . . Hacking Detections 1 | . . 1 Full Trace Events . | . . . Feedback Events . | . . . Feedback Blocked . | . . . Robot Schematics Acquired . | . . . Robots Built . | . . . Matter . | . . . Time . | . . . Total Robot Build Rating . | . . . Part Schematics Acquired . | . . . Parts Built . | . . . Matter . | . . . Time . | . . . Total Part Build Rating . | . . . Parts Repaired . | . . . Time . | . . . Parts Recycled . | . . . Recycled Matter . | . . . Retrieved Matter . | . . . Retrieved Components . | . . . Parts Scanalyzed . | . . . Part Schematics Acquired . | . . . Parts Damaged . | . . . Bothacking | -11 -10 -9 ------------ Run | Scr Mat Mat Used RIF Installer . | . . . Robots Hacked . | . . . Non-combat . | . . . Combat . | . . . Robot Hacks Applied . | . . . Relay Couplers Released . | . . . Robots Rewired . | . . . Allies Hacked . | . . . Hacks Repelled . | . . . Allies | -11 -10 -9 -------- Run | Scr Mat Mat Total Allies . | . . . Largest Group . | . . . Highest-Rated Group . | . . . Highest-Rated Ally . | . . . Total Orders . | . . . Ally Attacks . | . . . Total Damage . | . . . Kills . | . . . Allies Corrupted . | . . . Allies Melted . | . . . Intel | -11 -10 -9 ------- Run | Scr Mat Mat Robot Analysis Total . | . . . Derelict Logs Recovered . | . . . Drone Launches . | . . . Drone Recoveries . | . . . Exploration | -11 -10 -9 ------------- Run | Scr Mat Mat Turns Passed 2097 | 72 816 1209 Spaces Moved 937 | 41 382 514 Core 20 | 6 . 14 Treads 233 | 35 198 . Legs 520 | . 184 336 Wheels . | . . . Hover 164 | . . 164 Flight . | . . . Fastest Speed 50 | 50 150 50 Average Speed 156 | 143 157 156 Slowest Speed 250 | 160 180 250 Overloaded Moves . | . . . Propulsion Burnouts . | . . . Robots Hopped . | . . . Cave-ins Triggered . | . . . Exploration Rate (%) 36 | 5 62 43 Regions Visited 2 Branch Regions . Pre-discovered Areas . | . . . Known Exits Taken . | . . . Unknown Exits Taken 2 | 1 1 . Scrap Searched . | . . . Spaces Dug . | . . . Terrain Destroyed 6 | . . 6 Melee . | . . . Projectile 6 | . . 6 AOE . | . . . Actions | -11 -10 -9 --------- Run | Scr Mat Mat Total 1295 | 51 515 729 Wait 118 | . 68 50 Move 935 | 40 381 514 Hop . | . . . Pick Up 29 | 3 9 17 Fast Attach 26 | 7 2 17 Attach 17 | . 6 11 Detach 2 | 1 . 1 Swap 5 | . 1 4 Drop 20 | . 1 19 Fire 132 | . 47 85 Melee 10 | . . 10 Ram . | . . . Kick 1 | . . 1 Crush . | . . . Escape Stasis . | . . . Rewire . | . . . Trap . | . . . Miscellaneous . | . . . Route ------- -11/Scrapyard -10/Materials (discovered 2 exits: *Mat x2) -9/Materials (discovered 1 exit: [*Mat]) History --------- Turn | Location | Event 15 | -11/Scrapyard | Discovered new exit (range 15) 73 | -11/Scrapyard | Entered Materials 317 | -10/Materials | Build established: Mutant 374 | -10/Materials | Discovered new exit (range 16) 583 | -10/Materials | Lost 3 parts (1n2w) 655 | -10/Materials | Discovered new exit (range 9) 756 | -10/Materials | Core integrity fell below 50% 822 | -10/Materials | Lost 3 parts (1n2w) 841 | -10/Materials | Discovered new exit (range 16) 889 | -10/Materials | Entered another Materials area 889 | -9/Materials | Evolved 2 slots: Utility x2 1419 | -9/Materials | Discovered new exit (range 12) 1774 | -9/Materials | Core integrity fell below 50% 1785 | -9/Materials | Core integrity fell below 20% 1843 | -9/Materials | Lost 6 parts (1p1n4w) 1941 | -9/Materials | Discovered new exit (range 6) 2098 | -9/Materials | Destroyed by Lesser Abomination with Light Assault Rifle Last Messages --------------- 02060_ Lesser Abomination destroyed. 02061_ K-01 Serf cleans the Electrolysis Chamber. 02065_ Acquired 25 matter. 02071_ EM Anomaly zaps R-06 Scavenger with an electromagnetic arc. 02073_ K-01 Serf cleans the Electrolysis Chamber. 02075_ Acquired Sml. Matter Pod. 02077_ U-05 Engineer builds a Wall. 02077_ Acquired 23 matter. 02078_ Acquired 53 matter. 02081_ EM Anomaly zaps U-05 Engineer with an electromagnetic arc. 02081_ Acquired 25 matter. 02081_ U-05 Engineer builds a Wall. 02087_ Acquired 8 matter. 02090_ U-05 Engineer builds a Door. 02092_ Destroyed Wheel. 02093_ Acquired 8 matter. 02093_ Lesser Abomination absorbs Wheel. 02095_ U-05 Engineer builds a Wall. 02096_ Acquired 4 matter. 02096_ U-05 Engineer builds a Wall. Map ----- +----------------------------------------------------+ | | | | | | | | | | | | | | | | | | | | | #####???????????????????;????????????????????????? | | %= #?????????????????? ???? ???????????????????? | | = #??????????????????% ??? ???????????????????? | | #??????????????????" """ ???????????????????? | | #??????????????? """ """ ????????????????????? | | #??????????###???""" """ ????????????????????? | | #??????????? ? ????????????????????? | | = #######?????? #"#;;;;;##????????????????????? | | ###### % #??????? ; ;% u????????????????????? | | % # %";##; %%;#????????????????????? | | * %< + ?%nA%% %%##???????????????????? | | ###+## %% # """"" ???#;;%%%;;#########???????????? | | # ## ##??????????# ; k;;% %#???????????? | | # ## %#???????????##; k;| %% #???????????? | | # ## %#???????????# ; %%;% #???????????? | | # ## #############;; @k;; % %#???????????? | | # ## % % +% %% ; %## % #???????????? | | # = ## ##### % ; %#" #???????????? | | # ## #???# % ; ## #???????????? | | # ## #???#% % % ; #" #???????????? | | # ##=%#???# % ; *|#" % " ?????????? | | ##+#### =##??# % ;= %#######+### ??????? | | # # "% #??# ;= %= %% % ??????? | | # # # #??#% %; = *% %??????? | | #=# # #??#########;; == % ??????? | | ## # # "??????????#;;#u##"#" ??????? | | % # ##% #"?????????#% % %" ???????? | | ## # ## # #?????##?# % """"%" % ???????? | | # #### # #???###### """" " ? """" %????????? | | ## # #??? # """" " ?""""?? ????????? | | # ###??# # % "% ?""????????????? | | # T###?" %# =" % ??????????????? | | # % ## #" # ?= " % ?????????????? | | + ! %% ###""# # ?????" %"#?????????????? | | #= % % # #####?????" "#?????????????? | | # %% = + ##?????????% "#?????????????? | | =# ##+######%# ##?????????? "??????????????? | | # # %##"=# ##???????????????????????????? | | ## # """" " " ####?????????????????????????? | | # # """# " " # #? ???????????????????????? | +----------------------------------------------------+ Best States ------------- Heat Dissipation 38 Energy Generation 14 Energy Capacity 650 Matter Stores 442 Matter Capacity 450 Sight Range 16 Terrain Scan Density 10 Armor Coverage 600 Resistance: KI 20 Resistance: TH 20 Resistance: EX 20 Resistance: EM 20 Resistance: I 20 Resistance: S 20 Resistance: P 20 Evasion (%) 53 Recoil Reduction 2 Item Schematics ----------------- None Robot Schematics ------------------ None Fabricated ------------ Nothing Alien Tech Used ----------------- None Achievements -------------- None Challenges ------------ None Game ------ Seed BarrageThunderInjector Manual? 0 Play Time 00:26:01 Cumulative 69.1 hours Start 2019.11.10 @ 19:50:22 End 2019.11.10 @ 20:40:33 Sessions 1 Manual Loads 0 Difficulty Adventurer Special Mode Halloween2019/Abominations Game No. 65 Rogue 61 Adventurer 2 Explorer 0 Win Type - Total 0 Types 0/0/0/0/0/0/0 Lore% 33 Gallery% 42 Achievement% 33 Wizard Run 0 Options --------- ASCII 0 Keyboard 0 Movement Numpad Keybinds 0 Fullscreen 2 Font 18/X11Bold Map View 76x50 Tactical HUD 1 Map Filters NONE Filters NONE Steam 1 RUN: dcf3c95a-9c6a-48d3-9c38-9056864c04c2